[Event "Najdorf Memorial-B 2022"]
[Site "Warsaw"]
[Date "2022.07.17"]
[Round "9.14"]
[White "Tsiapko, Andrii"]
[Black "Matskevich, Varvara"]
[Result "0-1"]
[ECO "D70"]
[WhiteElo "1538"]
[BlackElo "1467"]
[Annotator "NA COMBH"]
[PlyCount "118"]
[EventDate "2022.07.09"]
[EventType "swiss"]
[EventCountry "POL"]
[SourceTitle "playchess.com"]
[Source "ChessBase"]
[SourceQuality "1"]
[TimeControl "40/5400+30:1800+30"]

1. d4 {[%emt 0:00:03]} d5 {[%emt 0:06:17]} 2. c4 {[%emt 0:00:08]} c6 {[%emt 0:00:18]} 3. Nf3 {[%emt 0:00:29]} Nf6 {[%emt 0:00:47]} 4. Nbd2 {[%emt 0:00:43]} e6 {[%emt 0:00:53]} 5. g3 {[%emt 0:00:27]} g6 {[%emt 0:00:53]} 6. Bg2 {[%emt 0:01:05]} Bg7 {[%emt 0:00:53]} 7. O-O {[%emt 0:02:05]} O-O {[%emt 0:00:48]} 8. Qc2 {[%emt 0:02:14]} b6 {[%emt 0:03:33]} 9. e4 {[%emt 0:02:23]} dxe4 {[%emt 0:00:47]} 10. Nxe4 {[%emt 0:00:10]} Nxe4 {[%emt 0:00:35]} 11. Qxe4 {[%emt 0:00:10]} Bb7 {[%emt 0:00:18]} 12. Ne5 {[%emt 0:04:14]} Qe7 {[%emt 0:02:10]} 13. Bf4 {[%emt 0:02:12]} Rd8 {[%emt 0:03:18]} 14. Rfe1 {[%emt 0:07:14]} f6 {[%emt 0:12:52]} 15. Nf3 {[%emt 0:13:11]} Kf7 {[%emt 0:00:44]} 16. Bh3 {[%emt 0:05:07]} Re8 {[%emt 0:02:40]} 17. c5 {[%emt 0:02:27]} bxc5 {[%emt 0:05:08]} 18. dxc5 {[%emt 0:00:16]} e5 {[%emt 0:01:07]} 19. Qc4+ {[%emt 0:03:28]} Kf8 {[%emt 0:00:21]} 20. Rad1 {[%emt 0:04:07]} Qf7 {[%emt 0:02:26]} 21. Qxf7+ {[%emt 0:01:34]} Kxf7 {[%emt 0:00:27]} 22. Bd2 {[%emt 0:01:27]} Na6 {[%emt 0:00:59]} 23. Ba5 {[%emt 0:05:58]} Nxc5 {[%emt 0:02:44]} 24. Bb4 {[%emt 0:01:20]} Bf8 {[%emt 0:00:10]} 25. Bxc5 {[%emt 0:07:08]} Bxc5 {[%emt 0:00:13]} 26. Rc1 {[%emt 0:00:52]} Bb4 {[%emt 0:01:20]} 27. Re2 {[%emt 0:05:27]} Rad8 {[%emt 0:01:09]} 28. a3 {[%emt 0:02:27]} Ba5 {[%emt 0:00:18]} 29. b4 {[%emt 0:00:27]} Bb6 {[%emt 0:00:13]} 30. Bg2 {[%emt 0:01:36]} e4 {[%emt 0:03:09]} 31. Ne1 {[%emt 0:03:48]} f5 {[%emt 0:01:40]} 32. a4 {[%emt 0:01:33]} a6 {[%emt 0:01:51]} 33. Nc2 {[%emt 0:02:39]} Rd3 {[%emt 0:00:58]} 34. Bf1 {[%emt 0:03:13]} Red8 {[%emt 0:00:52]} 35. a5 {[%emt 0:05:16]} Ba7 {[%emt 0:01:10]} 36. Ree1 {[%emt 0:01:17]} Rc3 {[%emt 0:02:31]} 37. Ne3 {[%emt 0:01:58]} Rxc1 {[%emt 0:00:32]} 38. Rxc1 {[%emt 0:00:02]} Bxe3 {[%emt 0:00:25]} 39. fxe3 {[%emt 0:00:03]} Rd2 40. Rc4 {[%emt 0:00:00]} Ke6 {[%emt 0:00:00]} 41. g4 {[%emt 0:02:22]} Ke5 {[%emt 0:01:48]} 42. Rc5+ {[%emt 0:04:43]} Rd5 {[%emt 0:00:24]} 43. Rc4 {[%emt 0:01:23]} Kd6 {[%emt 0:03:46]} 44. Bh3 {[%emt 0:06:07]} Bc8 {[%emt 0:01:40]} 45. gxf5 {[%emt 0:00:21]} gxf5 {[%emt 0:00:12]} 46. Kf2 {[%emt 0:02:29]} Be6 {[%emt 0:01:21]} 47. Rc2 {[%emt 0:01:44]} c5 {[%emt 0:01:49]} 48. bxc5+ {[%emt 0:07:41]} Rxc5 {[%emt 0:00:11]} 49. Rb2 {[%emt 0:00:35]} Rxa5 {[%emt 0:00:45]} 50. Rb6+ {[%emt 0:02:35]} Ke5 {[%emt 0:01:02]} 51. Rb7 {[%emt 0:00:32]} Ra2+ {[%emt 0:00:06]} 52. Kg3 {[%emt 0:00:10]} Re2 {[%emt 0:00:11]} 53. Rxh7 {[%emt 0:00:25]} Rxe3+ {[%emt 0:00:06]} 54. Kf2 {[%emt 0:00:19]} Rf3+ {[%emt 0:00:22]} 55. Ke1 {[%emt 0:00:24]} Kf4 {[%emt 0:00:25]} 56. Bg2 {[%emt 0:00:25]} Rb3 {[%emt 0:00:45]} 57. Rc7 {[%emt 0:00:56]} Ke3 {[%emt 0:00:13]} 58. Rc1 {[%emt 0:00:20]} f4 {[%emt 0:00:16]} 59. h4 {[%emt 0:00:14]} f3 {[%emt 0:00:06]} 0-1

[Event "Najdorf Memorial-B 2022"]
[Site "Warsaw"]
[Date "2022.07.17"]
[Round "9.15"]
[White "Machnik, Stanislaw"]
[Black "Piddubna, Bozhena"]
[Result "0-1"]
[ECO "C55"]
[WhiteElo "1381"]
[BlackElo "1534"]
[Annotator "NA COMBH"]
[PlyCount "48"]
[EventDate "2022.07.09"]
[EventType "swiss"]
[EventCountry "POL"]
[SourceTitle "playchess.com"]
[Source "ChessBase"]
[SourceQuality "1"]
[TimeControl "40/5400+30:1800+30"]

1. e4 {[%emt 0:00:02]} e5 {[%emt 0:00:18]} 2. Nf3 {[%emt 0:00:04]} Nc6 {[%emt 0:00:05]} 3. Bc4 {[%emt 0:00:03]} Nf6 {[%emt 0:00:08]} 4. d3 {[%emt 0:00:03]} h6 {[%emt 0:00:10]} 5. c3 {[%emt 0:01:58]} d6 {[%emt 0:00:13]} 6. a4 {[%emt 0:00:17]} g6 {[%emt 0:03:28]} 7. h3 {[%emt 0:04:10]} Bg7 {[%emt 0:00:24]} 8. Be3 {[%emt 0:09:05]} O-O {[%emt 0:07:22]} 9. O-O {[%emt 0:06:39]} Be6 {[%emt 0:13:20]} 10. Bxe6 {[%emt 0:02:49]} fxe6 {[%emt 0:00:02]} 11. Nh2 {[%emt 0:12:37]} d5 {[%emt 0:08:36]} 12. exd5 {[%emt 0:05:22]} exd5 {[%emt 0:00:25]} 13. f4 {[%emt 0:10:26]} exf4 {[%emt 0:12:35]} 14. Rxf4 {[%emt 0:03:25]} Qe7 {[%emt 0:01:04]} 15. Qd2 {[%emt 0:02:41]} Rae8 {[%emt 0:02:06]} 16. Bf2 {[%emt 0:03:22]} h5 {[%emt 0:02:29]} 17. Bh4 {[%emt 0:09:40]} Bh6 {[%emt 0:02:27]} 18. Rxf6 {[%emt 0:02:26]} Be3+ {[%emt 0:05:41]} 19. Kh1 {[%emt 0:05:21]} Qxf6 {[%emt 0:00:53]} 20. Bxf6 {[%emt 0:02:40]} Bxd2 {[%emt 0:00:53]} 21. Nxd2 {[%emt 0:00:07]} Rxf6 {[%emt 0:00:04]} 22. Nhf3 {[%emt 0:00:36]} Ne5 {[%emt 0:02:11]} 23. d4 {[%emt 0:01:02]} Nf7 {[%emt 0:02:39]} 24. Nb3 {[%emt 0:01:05]} Rb6 {[%emt 0:01:09]} 0-1

[Event "Najdorf Memorial-B 2022"]
[Site "Warsaw"]
[Date "2022.07.17"]
[Round "9.16"]
[White "Adamowicz, Michal"]
[Black "Wasiluk, Mateusz"]
[Result "1-0"]
[ECO "C00"]
[WhiteElo "1408"]
[BlackElo "1496"]
[Annotator "NA COMBH"]
[PlyCount "63"]
[EventDate "2022.07.09"]
[EventType "swiss"]
[EventCountry "POL"]
[SourceTitle "playchess.com"]
[Source "ChessBase"]
[SourceQuality "1"]
[TimeControl "40/5400+30:1800+30"]

1. e4 {[%emt 0:00:01]} e6 {[%emt 0:00:06]} 2. d3 {[%emt 0:03:29]} d5 {[%emt 0:00:11]} 3. Nd2 {[%emt 0:00:15]} Nf6 {[%emt 0:00:25]} 4. Ngf3 {[%emt 0:00:07]} dxe4 {[%emt 0:01:23]} 5. dxe4 {[%emt 0:00:07]} b6 {[%emt 0:00:10]} 6. Bd3 {[%emt 0:09:42]} Bb7 {[%emt 0:00:25]} 7. e5 {[%emt 0:02:00]} Nd5 {[%emt 0:01:45]} 8. Be4 {[%emt 0:01:46]} c6 {[%emt 0:00:21]} 9. O-O {[%emt 0:03:41]} Nd7 {[%emt 0:01:23]} 10. c4 {[%emt 0:00:42]} Ne7 {[%emt 0:00:14]} 11. Qe2 {[%emt 0:01:19]} Qc7 {[%emt 0:08:51]} 12. Bc2 {[%emt 0:02:12]} Ng6 {[%emt 0:01:44]} 13. Re1 {[%emt 0:00:36]} Be7 {[%emt 0:02:45]} 14. a3 {[%emt 0:06:18]} c5 {[%emt 0:02:23]} 15. b3 {[%emt 0:08:01]} O-O-O 16. Bb2 {[%emt 0:02:38]} Nf4 {[%emt 0:14:15]} 17. Qe3 {[%emt 0:02:59]} g5 {[%emt 0:00:34]} 18. Ne4 {[%emt 0:10:08]} Rdg8 {[%emt 0:03:38]} 19. Nd6+ {[%emt 0:04:51]} Bxd6 {[%emt 0:07:23]} 20. exd6 {[%emt 0:00:13]} Qxd6 {[%emt 0:00:20]} 21. Rad1 {[%emt 0:03:30]} Qc7 {[%emt 0:01:47]} 22. Bxh8 {[%emt 0:00:34]} g4 {[%emt 0:04:36]} 23. Ne5 {[%emt 0:13:49]} Nxg2 {[%emt 0:09:30]} 24. Rxd7 {[%emt 0:01:10]} Qb8 {[%emt 0:00:47]} 25. Rxb7 {[%emt 0:00:12]} Qxb7 {[%emt 0:00:20]} 26. Be4 {[%emt 0:00:39]} Nxe3 {[%emt 0:00:15]} 27. Bxb7+ {[%emt 0:00:09]} Kxb7 {[%emt 0:00:07]} 28. fxe3 {[%emt 0:00:19]} Rxh8 {[%emt 0:00:06]} 29. Rd1 {[%emt 0:01:55]} f6 {[%emt 0:00:08]} 30. Rd7+ {[%emt 0:00:57]} Kc8 {[%emt 0:00:31]} 31. Rxa7 {[%emt 0:00:05]} Kb8 {[%emt 0:00:06]} 32. Nc6+ {[%emt 0:00:09]} 1-0

[Event "Najdorf Memorial-B 2022"]
[Site "Warsaw"]
[Date "2022.07.17"]
[Round "9.17"]
[White "Kobus, Stanislaw"]
[Black "Morczynski, Joachim"]
[Result "0-1"]
[ECO "A30"]
[WhiteElo "1427"]
[BlackElo "1762"]
[Annotator "NA COMBH"]
[PlyCount "66"]
[EventDate "2022.07.09"]
[EventType "swiss"]
[EventCountry "POL"]
[SourceTitle "playchess.com"]
[Source "ChessBase"]
[SourceQuality "1"]
[TimeControl "40/5400+30:1800+30"]

1. c4 {[%emt 0:00:11]} c5 {[%emt 0:00:11]} 2. Nf3 {[%emt 0:00:34]} Nc6 {[%emt 0:00:25]} 3. g3 {[%emt 0:00:11]} g6 {[%emt 0:00:13]} 4. Nc3 {[%emt 0:00:49]} Nf6 5. b3 {[%emt 0:01:46]} Bg7 {[%emt 0:00:45]} 6. Bb2 {[%emt 0:00:32]} O-O {[%emt 0:00:49]} 7. Bg2 {[%emt 0:00:32]} d6 {[%emt 0:00:33]} 8. O-O {[%emt 0:00:54]} Bd7 {[%emt 0:00:06]} 9. d3 {[%emt 0:03:50]} Qc8 {[%emt 0:00:12]} 10. Qd2 {[%emt 0:02:11]} Bh3 {[%emt 0:00:34]} 11. Nd5 {[%emt 0:03:28]} Bxg2 {[%emt 0:02:10]} 12. Kxg2 {[%emt 0:00:02]} Nxd5 {[%emt 0:01:06]} 13. Bxg7 {[%emt 0:01:12]} Kxg7 {[%emt 0:00:16]} 14. cxd5 {[%emt 0:00:07]} Nb4 {[%emt 0:01:16]} 15. e4 {[%emt 0:06:23]} a5 {[%emt 0:00:39]} 16. a3 {[%emt 0:00:36]} Na6 {[%emt 0:00:17]} 17. Qxa5 {[%emt 0:00:22]} Nb4 {[%emt 0:00:29]} 18. Qb5 {[%emt 0:00:38]} Nc2 {[%emt 0:00:11]} 19. a4 {[%emt 0:03:50]} Nxa1 {[%emt 0:00:19]} 20. Rxa1 {[%emt 0:00:09]} Qc7 {[%emt 0:00:33]} 21. a5 {[%emt 0:02:23]} Ra6 {[%emt 0:01:36]} 22. Nd2 {[%emt 0:00:08]} Rfa8 {[%emt 0:00:18]} 23. Nc4 {[%emt 0:00:07]} R8a7 {[%emt 0:03:35]} 24. h4 Qd8 25. Rh1 {[%emt 0:03:19]} Rxa5 {[%emt 0:03:46]} 26. Nxa5 {[%emt 0:00:20]} Qxa5 {[%emt 0:00:13]} 27. Qe8 {[%emt 0:01:10]} Qd2 {[%emt 0:05:44]} 28. h5 Ra2 29. h6+ {[%emt 0:03:39]} Kf6 {[%emt 0:00:34]} 30. Qh8+ {[%emt 0:09:44]} Kg5 {[%emt 0:00:18]} 31. Rf1 {[%emt 0:00:58]} Qxd3 {[%emt 0:04:07]} 32. Qxh7 {[%emt 0:00:44]} Kg4 33. Kg1 {[%emt 0:00:56]} Qf3 {[%emt 0:01:18]} 0-1